bitfinex-derivatives/quotes_SOLF0:USTF0_20250419
["timestamp","ask_amount","ask_price","bid_price","bid_amount"]
[1745058500382,5.07356854,139.46,139.45,5.68103767]
[1745058502284,5.07246292,139.46,139.45,5.68103767]
[1745058502584,32.5491,139.5,139.45,5.68103767]
[1745058502784,5.07245761,139.49,139.47,5.68103767]
[1745058502986,5.07245761,139.48,139.47,5.68103767]
[1745058503381,5.07338909,139.48,139.47,5.68103767]
[1745058506691,5.07338909,139.48,139.45,25.38]
[1745058506891,5.07338909,139.47,139.44,5.68103767]
[1745058507093,5.07599412,139.46,139.44,5.68103767]
[1745058507290,31.06103767,139.5,139.44,5.68103767]
[1745058507491,7.1705,139.47,139.44,5.68103767]
[1745058507690,5.0770042,139.46,139.44,5.68103767]
[1745058507892,7.1705,139.47,139.44,5.68103767]
[1745058508088,5.07656179,139.46,139.44,5.68103767]
[1745058508391,5.07748024,139.45,139.44,5.68103767]
[1745058513191,25.38,139.5,139.44,5.68103767]
[1745058513395,5.07815255,139.49,139.47,5.68103767]
[1745058513597,5.07815255,139.48,139.47,5.68103767]
[1745058514295,5.919,139.53,139.47,5.68103767]
[1745058514493,12.2466781,139.52,139.5,5.68103767]
[1745058514692,5.0785781,139.51,139.5,5.68103767]
[1745058523306,5.06898336,139.51,139.5,5.68103767]
[1745058525110,5.06886467,139.51,139.5,5.68103767]
[1745058525711,5.06866327,139.51,139.5,5.68103767]
[1745058526611,5.06866327,139.51,139.48,25.38]
[1745058526811,5.06866327,139.5,139.47,5.68103767]
[1745058527111,5.06866327,139.49,139.47,5.68103767]
[1745058527311,31.1574,139.53,139.47,5.68103767]
[1745058527613,5.06877119,139.52,139.5,5.68103767]
[1745058527806,5.06877119,139.51,139.5,5.68103767]
[1745058536420,7.1672,139.54,139.5,5.68103767]
[1745058536616,5.07990672,139.53,139.52,5.68103767]
[1745058539224,5.07990672,139.53,139.5,5.68103767]
[1745058539415,5.07990672,139.52,139.48,31.04103767]
[1745058539620,12.24870672,139.51,139.48,31.04103767]
[1745058539821,5.07990672,139.5,139.48,31.04103767]
[1745058540018,5.07990672,139.49,139.48,31.04103767]
[1745058541125,7.1682,139.52,139.48,31.04103767]
[1745058541319,5.07790078,139.51,139.48,31.04103767]
[1745058541521,5.07790078,139.5,139.48,31.04103767]
[1745058541722,5.07790078,139.49,139.48,25.36]
[1745058542218,5.07790078,139.49,139.47,5.68103767]
[1745058542422,5.07790078,139.48,139.47,5.68103767]
[1745058542819,5.07491522,139.48,139.47,5.68103767]
[1745058544527,5.07518078,139.48,139.47,5.68103767]
[1745058545226,5.07518078,139.48,139.45,31.04103767]
[1745058545526,5.68103767,139.49,139.45,31.04103767]
[1745058545527,5.07518078,139.47,139.45,31.04103767]
[1745058545726,5.07467437,139.46,139.45,31.04103767]
[1745058545926,5.68103767,139.49,139.45,31.04103767]
[1745058546127,5.07421044,139.48,139.45,31.04103767]
[1745058546328,5.07421044,139.47,139.45,31.04103767]
[1745058546529,7.1704,139.48,139.45,31.04103767]
[1745058546729,5.07449597,139.47,139.45,31.04103767]
[1745058547031,5.07398705,139.46,139.45,25.36]
[1745058547529,12.24498705,139.46,139.42,5.68103767]
[1745058547723,5.07398705,139.45,139.42,5.68103767]
[1745058547923,5.07376519,139.44,139.42,5.68103767]
[1745058548129,7.171,139.46,139.42,5.68103767]
[1745058548330,5.07316829,139.45,139.42,5.68103767]
[1745058548629,5.07316829,139.44,139.42,5.68103767]
[1745058548827,7.171,139.46,139.42,5.68103767]
[1745058549030,5.07213926,139.45,139.42,5.68103767]
[1745058549223,5.07213926,139.44,139.42,5.68103767]
[1745058549428,7.171,139.46,139.42,5.68103767]
[1745058549628,5.07153074,139.45,139.42,5.68103767]
[1745058549825,5.07153074,139.44,139.42,5.68103767]
[1745058550131,5.07101017,139.43,139.42,5.68103767]
[1745058551736,5.06831599,139.43,139.42,5.68103767]
[1745058552836,5.06831599,139.43,139.41,25.36]
[1745058553136,7.1722,139.44,139.41,25.36]
[1745058553435,5.06704773,139.43,139.41,25.36]
[1745058553635,12.85283767,139.45,139.41,25.36]
[1745058553838,5.06566499,139.44,139.41,25.36]
[1745058554036,5.06566499,139.43,139.41,25.36]
[1745058554236,7.1721,139.44,139.41,25.36]
[1745058554535,5.06443738,139.43,139.41,25.36]
[1745058554836,7.1721,139.44,139.41,25.36]
[1745058555038,5.06451321,139.43,139.41,25.36]
[1745058555240,7.1721,139.44,139.41,25.36]
[1745058555538,5.06370707,139.43,139.41,25.36]
[1745058555741,7.1721,139.44,139.41,25.36]
[1745058555942,5.06370711,139.43,139.41,25.36]
[1745058556142,7.1721,139.44,139.41,25.36]
[1745058556341,5.06385469,139.43,139.41,25.36]
[1745058556640,7.1721,139.44,139.41,25.36]
[1745058556841,5.06284744,139.43,139.41,25.36]
[1745058557140,7.1721,139.44,139.41,25.36]
[1745058557338,5.06305465,139.43,139.41,25.36]
[1745058557538,7.1721,139.44,139.41,25.36]
[1745058558846,7.1721,139.44,139.41,31.04103767]
[1745058560147,7.1718,139.45,139.41,31.04103767]
[1745058560449,5.05959795,139.44,139.41,31.04103767]
[1745058560649,7.1718,139.45,139.41,31.04103767]
[1745058560947,5.0595993,139.44,139.41,31.04103767]
[1745058561147,7.1718,139.45,139.41,31.04103767]
[1745058561341,5.05941919,139.44,139.41,31.04103767]
[1745058561546,7.1718,139.45,139.41,31.04103767]
[1745058561846,5.05900658,139.44,139.41,31.04103767]
[1745058562046,7.1718,139.45,139.41,31.04103767]
[1745058562249,5.05893657,139.44,139.41,31.04103767]
[1745058562449,7.1718,139.45,139.41,31.04103767]
[1745058562645,5.05786995,139.44,139.41,31.04103767]
[1745058562848,7.1718,139.45,139.41,31.04103767]
[1745058563152,5.05783532,139.44,139.41,31.04103767]
[1745058563341,7.1718,139.45,139.41,31.04103767]
[1745058563648,5.05761566,139.44,139.41,31.04103767]
[1745058563946,7.1718,139.45,139.41,31.04103767]
[1745058564148,5.05736707,139.44,139.41,31.04103767]
[1745058564350,7.1718,139.45,139.41,31.04103767]
[1745058564550,5.05729222,139.44,139.41,31.04103767]
[1745058564850,7.1718,139.45,139.41,31.04103767]
[1745058565151,5.05725759,139.44,139.41,31.04103767]
[1745058565351,7.1718,139.45,139.41,31.04103767]
[1745058565549,5.05701472,139.44,139.41,31.04103767]
[1745058565751,7.1718,139.45,139.41,31.04103767]
[1745058566049,5.0570495,139.44,139.41,31.04103767]
[1745058566248,7.1718,139.45,139.41,31.04103767]
[1745058566448,5.05736178,139.44,139.41,31.04103767]
[1745058566651,7.1718,139.45,139.41,31.04103767]
[1745058566853,12.22976917,139.44,139.41,31.04103767]
[1745058567053,7.1721,139.44,139.41,31.04103767]
[1745058567652,7.1727,139.43,139.41,31.04103767]
[1745058568151,7.1723,139.44,139.41,31.04103767]
[1745058572048,2.0168,139.46,139.41,31.04103767]
[1745058572254,583.18333945,139.53,139.41,31.04103767]
[1745058572255,5.68103767,139.49,139.43,5.68103767]
[1745058572551,5.06038482,139.48,139.43,5.68103767]
[1745058572751,7.1713,139.46,139.43,5.68103767]
[1745058576448,5.06977108,139.45,139.43,5.68103767]
[1745058576754,7.1713,139.46,139.43,5.68103767]
[1745058577054,5.07024478,139.45,139.43,5.68103767]
[1745058577251,7.1713,139.46,139.43,5.68103767]
[1745058577453,5.07118399,139.45,139.43,5.68103767]
[1745058577754,7.1713,139.46,139.43,5.68103767]
[1745058577947,5.07213499,139.45,139.43,5.68103767]
[1745058578248,7.1713,139.46,139.43,5.68103767]
[1745058578452,5.07330472,139.45,139.43,5.68103767]
[1745058578652,7.1713,139.46,139.43,5.68103767]
[1745058578853,5.07371858,139.45,139.43,5.68103767]
[1745058579054,7.1713,139.46,139.43,5.68103767]
[1745058579254,5.0737132,139.45,139.43,5.68103767]
[1745058579453,7.1713,139.46,139.43,5.68103767]
[1745058579653,5.0748197,139.45,139.43,5.68103767]
[1745058579853,7.1713,139.46,139.43,5.68103767]
[1745058580054,5.07491459,139.45,139.43,5.68103767]
[1745058580257,7.1713,139.46,139.43,5.68103767]
[1745058580454,5.07638239,139.45,139.43,5.68103767]
[1745058580654,7.1713,139.46,139.43,5.68103767]
[1745058580954,5.07629406,139.45,139.43,5.68103767]
[1745058581150,5.07820651,139.44,139.43,5.68103767]
[1745058582458,5.08389331,139.44,139.43,5.68103767]
[1745058598074,5.08389331,139.44,139.41,31.04103767]
[1745058598276,5.08389331,139.43,139.41,31.04103767]
[1745058598477,5.08389331,139.42,139.41,31.04103767]
[1745058607283,5.11256314,139.42,139.41,31.04103767]
[1745058607783,5.11256314,139.42,139.39,5.68103767]
[1745058607983,5.11256314,139.41,139.39,5.68103767]
[1745058608188,5.11256314,139.4,139.39,5.68103767]
[1745058612686,5.91108562,139.4,139.39,5.68103767]
[1745058616984,5.7907,139.45,139.39,5.68103767]
[1745058617185,1.8546,139.45,139.44,5.68103767]
[1745058617489,7.1708,139.47,139.42,31.06103767]
[1745058621992,14.79663767,139.48,139.42,31.06103767]
[1745058623289,7.1706,139.47,139.42,31.06103767]
[1745058624290,7.1711,139.46,139.42,31.06103767]
[1745058624491,1.9453,139.48,139.44,5.68103767]
[1745058625090,9.1156,139.48,139.44,5.68103767]
[1745058625391,1.9453,139.48,139.46,5.68103767]
[1745058626693,9.1153,139.48,139.46,5.68103767]
[1745058627091,1.9453,139.48,139.46,5.68103767]
[1745058628589,9.1153,139.48,139.44,5.68103767]
[1745058628890,5.2717151,139.47,139.44,5.68103767]
[1745058629089,5.2717151,139.46,139.44,5.68103767]
[1745058629291,5.2717151,139.45,139.44,5.68103767]
[1745058632295,5.2717151,139.45,139.42,25.38]
[1745058632498,5.2717151,139.44,139.42,31.06103767]
[1745058632697,5.2717151,139.43,139.42,31.06103767]
[1745058636096,7.1718,139.45,139.42,31.06103767]
[1745058636302,5.27148016,139.44,139.42,31.06103767]
[1745058636498,5.27148016,139.43,139.42,31.06103767]
[1745058639598,5.27148016,139.43,139.42,5.68103767]
[1745058641503,7.1716,139.45,139.42,5.68103767]
[1745058641705,5.2722652,139.44,139.4,31.04103767]
[1745058641903,5.2722652,139.43,139.4,25.36]
[1745058642101,5.2722652,139.42,139.4,25.36]
[1745058642301,5.2722652,139.41,139.38,5.68103767]
[1745058642604,5.2722652,139.4,139.37,25.36]
[1745058642799,5.2722652,139.39,139.37,25.36]
[1745058643001,5.2722652,139.38,139.35,5.68103767]
[1745058643197,5.2722652,139.37,139.35,5.68103767]
[1745058643400,5.2722652,139.36,139.35,5.68103767]
[1745058645805,5.76987652,139.36,139.35,5.68103767]
[1745058647010,5.76707669,139.36,139.35,5.68103767]
[1745058648811,5.76307685,139.36,139.35,5.68103767]
[1745058653513,5.75883672,139.36,139.35,5.68103767]
[1745058655117,5.75883672,139.36,139.34,25.36]
[1745058655319,5.75895791,139.35,139.34,31.04103767]
[1745058658318,7.1744,139.4,139.34,31.04103767]
[1745058658619,5.75472307,139.39,139.34,31.04103767]
[1745058658818,5.75472307,139.38,139.34,31.04103767]
[1745058659020,5.75472307,139.37,139.34,31.04103767]
[1745058659221,5.75472307,139.36,139.34,31.04103767]
[1745058659421,5.75377887,139.35,139.34,31.04103767]
[1745058659920,5.75377887,139.35,139.33,25.38]
[1745058660116,5.75377887,139.34,139.33,25.38]
[1745058660511,5.75377887,139.34,139.32,5.68103767]
[1745058660815,5.75377887,139.33,139.32,5.68103767]
[1745058662323,7.1764,139.36,139.32,5.68103767]
[1745058664124,12.85693767,139.37,139.32,5.68103767]
[1745058666623,7.1753,139.38,139.34,5.68103767]
[1745058666823,5.68103767,139.39,139.34,5.68103767]
[1745058667225,7.1754,139.38,139.34,5.68103767]
[1745058667925,7.1757,139.37,139.34,5.68103767]
[1745058669229,7.1757,139.37,139.33,25.38]
[1745058669625,12.85673767,139.37,139.33,25.38]
[1745058670227,12.85673767,139.37,139.32,5.68103767]
[1745058670930,7.1762,139.36,139.32,5.68103767]
[1745058672532,12.85693767,139.37,139.32,5.68103767]
[1745058673535,5.68103767,139.37,139.32,5.68103767]
[1745058673833,7.1764,139.36,139.32,5.68103767]
[1745058675836,7.1769,139.35,139.32,5.68103767]
[1745058676939,5.68103767,139.37,139.32,5.68103767]
[1745058677539,7.177,139.35,139.32,5.68103767]
[1745058678237,7.177,139.35,139.31,25.38]
[1745058678635,7.1772,139.34,139.31,25.38]
[1745058678835,31.06103767,139.37,139.31,25.38]
[1745058679040,7.1772,139.35,139.31,25.38]
[1745058681137,7.1773,139.34,139.31,25.38]
[1745058681841,7.177,139.35,139.31,25.38]
[1745058683044,7.1772,139.34,139.31,25.38]
[1745058683944,7.1778,139.33,139.31,25.38]
[1745058684343,7.1778,139.33,139.3,5.68103767]
[1745058686745,7.1775,139.34,139.3,5.68103767]
[1745058688648,7.1778,139.33,139.3,5.68103767]
[1745058690555,7.1775,139.34,139.3,5.68103767]
[1745058691151,7.177,139.35,139.3,5.68103767]
[1745058691952,5.57927383,139.34,139.3,5.68103767]
[1745058692152,5.57927383,139.33,139.3,5.68103767]
[1745058692352,5.57927383,139.32,139.3,5.68103767]
[1745058692548,5.57927383,139.31,139.3,5.68103767]
[1745058696154,5.57927383,139.31,139.28,31.06103767]
[1745058696352,5.57927383,139.3,139.28,31.06103767]
[1745058696552,5.57927383,139.29,139.28,31.06103767]
[1745058698857,5.55125794,139.29,139.28,31.06103767]
[1745058699958,5.55125794,139.29,139.28,25.38]
[1745058700160,5.55125794,139.29,139.26,5.68103767]
[1745058700358,5.55125794,139.28,139.26,5.68103767]
[1745058700558,5.55125794,139.27,139.26,5.68103767]
[1745058700759,5.68103767,139.33,139.26,5.68103767]
[1745058700961,5.5493258,139.32,139.28,5.68103767]
[1745058701161,5.5493258,139.31,139.28,5.68103767]
[1745058701357,5.5493258,139.3,139.28,5.68103767]
[1745058701557,5.5493258,139.29,139.28,5.68103767]
[1745058703161,12.85893767,139.33,139.28,5.68103767]
[1745058703462,5.55172824,139.32,139.28,5.68103767]
[1745058703661,5.55172824,139.31,139.28,5.68103767]
[1745058703862,5.55172824,139.3,139.28,5.68103767]
[1745058704062,5.55172824,139.29,139.28,5.68103767]
[1745058705462,5.55172824,139.29,139.28,31.06103767]
[1745058705973,5.56447621,139.29,139.28,31.06103767]
[1745058706263,5.56421401,139.29,139.28,31.06103767]
[1745058707964,5.68103767,139.35,139.28,31.06103767]
[1745058708165,5.68103767,139.35,139.31,5.68103767]
[1745058708665,12.85803767,139.35,139.3,5.68103767]
[1745058709769,5.68103767,139.35,139.3,5.68103767]
[1745058709965,5.68103767,139.35,139.29,5.68103767]
[1745058710870,5.68103767,139.35,139.31,5.68103767]
[1745058711168,13.1643,139.36,139.31,5.68103767]
[1745058712472,7.1768,139.35,139.31,5.68103767]
[1745058712969,5.9877,139.36,139.31,5.68103767]
[1745058713171,13.1639,139.36,139.31,5.68103767]
[1745058713370,5.9877,139.36,139.31,5.68103767]
[1745058713670,1.999,139.36,139.31,31.06103767]
[1745058713970,1.999,139.36,139.33,5.68103767]
[1745058715375,5.68103767,139.37,139.33,5.68103767]
[1745058715671,32.5554,139.38,139.33,5.68103767]
[1745058716369,7.1759,139.37,139.33,5.68103767]
[1745058716968,7.1762,139.36,139.33,5.68103767]
[1745058719870,5.42552878,139.35,139.33,5.68103767]
[1745058720072,5.42552878,139.34,139.33,5.68103767]
[1745058720770,5.42548961,139.34,139.33,5.68103767]
[1745058722473,5.42548961,139.34,139.31,31.06103767]
[1745058722774,5.42548961,139.33,139.31,31.06103767]
[1745058722973,5.42548961,139.32,139.31,31.06103767]
[1745058723669,5.42209023,139.32,139.31,31.06103767]
[1745058725477,5.42144415,139.32,139.31,31.06103767]
[1745058729380,5.42144415,139.32,139.29,5.68103767]
[1745058729678,5.42144415,139.31,139.29,5.68103767]
[1745058729877,5.42144415,139.3,139.29,5.68103767]
[1745058733284,5.42144415,139.3,139.27,31.04103767]
[1745058733484,5.42144415,139.29,139.27,31.04103767]
[1745058733682,5.42144415,139.28,139.27,31.04103767]
[1745058734889,34.77903767,139.35,139.27,31.04103767]
[1745058735088,34.77903767,139.35,139.3,5.68103767]
[1745058735385,7.1775,139.34,139.3,5.68103767]
[1745058737386,1.8348,139.35,139.32,5.68103767]
[1745058737592,7.66043767,139.4,139.34,5.68103767]
[1745058737791,7.66043767,139.4,139.36,5.68103767]
[1745058737992,7.1747,139.39,139.36,5.68103767]
[1745058738692,14.83483767,139.4,139.36,5.68103767]
[1745058739294,9.1538,139.4,139.36,5.68103767]
[1745058739494,1.9794,139.4,139.36,5.68103767]
[1745058739691,1.9794,139.4,139.38,5.68103767]
[1745058739891,7.1738,139.41,139.38,5.68103767]
[1745058741690,3.8832,139.42,139.38,5.68103767]
[1745058743397,7.1723,139.44,139.4,5.68103767]
[1745058743897,12.85353767,139.44,139.4,5.68103767]
[1745058745194,5.68103767,139.44,139.4,5.68103767]
[1745058746893,4.95396394,139.43,139.39,25.36]
[1745058747098,10.63500161,139.42,139.39,25.36]
[1745058747393,12.12796394,139.41,139.37,5.68103767]
[1745058747594,4.95396394,139.4,139.37,5.68103767]
[1745058747795,4.95396394,139.39,139.37,5.68103767]
[1745058748097,7.174,139.41,139.37,5.68103767]
[1745058748296,4.95284963,139.4,139.37,5.68103767]
[1745058748496,4.95284963,139.39,139.37,5.68103767]
[1745058748698,9.0171,139.42,139.37,5.68103767]
[1745058748898,4.95127345,139.41,139.37,5.68103767]
[1745058749095,4.95127345,139.4,139.37,5.68103767]
[1745058749295,4.95127345,139.39,139.37,5.68103767]
[1745058749498,11.1761,139.41,139.37,5.68103767]
[1745058749697,4.95089001,139.4,139.37,5.68103767]
[1745058749898,4.95089001,139.39,139.37,5.68103767]
[1745058750099,11.1761,139.41,139.37,5.68103767]
[1745058750394,4.95105045,139.4,139.37,5.68103767]
[1745058750600,4.95105045,139.39,139.37,5.68103767]
[1745058750800,11.1761,139.41,139.37,5.68103767]
[1745058751001,12.12491485,139.4,139.37,5.68103767]
[1745058751300,4.95071485,139.39,139.37,5.68103767]
[1745058751498,7.1742,139.4,139.37,5.68103767]
[1745058751697,4.950745,139.39,139.37,5.68103767]
[1745058752002,11.176,139.41,139.37,5.68103767]
[1745058752201,4.9509612,139.4,139.37,5.68103767]
[1745058752499,4.9509612,139.39,139.37,5.68103767]
[1745058752701,11.176,139.41,139.37,5.68103767]
[1745058752903,4.95107417,139.4,139.39,5.68103767]
[1745058754197,12.12517417,139.4,139.37,5.68103767]
[1745058754503,7.1741,139.4,139.37,5.68103767]
[1745058754803,4.95150608,139.39,139.37,5.68103767]
[1745058754996,11.1761,139.41,139.37,5.68103767]
[1745058755195,4.95150638,139.4,139.37,5.68103767]
[1745058755396,11.1761,139.41,139.37,5.68103767]
[1745058755701,4.95152168,139.4,139.37,5.68103767]
[1745058755899,4.95152168,139.39,139.37,5.68103767]
[1745058756101,11.1761,139.41,139.37,5.68103767]
[1745058756294,4.95148038,139.4,139.37,5.68103767]
[1745058756500,11.1761,139.41,139.37,5.68103767]
[1745058756695,4.95147346,139.4,139.37,5.68103767]
[1745058756897,11.1761,139.41,139.37,5.68103767]
[1745058757196,4.95116617,139.4,139.37,5.68103767]
[1745058757400,11.1761,139.41,139.37,5.68103767]
[1745058757704,5.68103767,139.39,139.33,568.16]
[1745058757900,5.68103767,139.37,139.33,25.34]
[1745058758205,4.95004399,139.36,139.33,25.34]
[1745058758405,12.85703767,139.37,139.33,25.34]
[1745058758706,4.95151881,139.36,139.33,25.34]
[1745058758904,4.95124681,139.35,139.33,25.34]
[1745058759106,4.9515576,139.34,139.3,5.68103767]
[1745058759405,5.68103767,139.35,139.3,5.68103767]
[1745058759700,4.95131578,139.34,139.3,5.68103767]
[1745058759904,4.95132,139.33,139.3,5.68103767]
[1745058760107,5.68103767,139.35,139.3,5.68103767]
[1745058760304,12.12857219,139.34,139.3,5.68103767]
[1745058760604,4.95107219,139.33,139.3,5.68103767]
[1745058760906,7.1775,139.34,139.3,5.68103767]
[1745058761106,4.95071055,139.33,139.3,5.68103767]
[1745058761304,7.1775,139.34,139.3,5.68103767]
[1745058761506,4.94963802,139.33,139.3,5.68103767]
[1745058761706,7.1775,139.34,139.3,5.68103767]
[1745058761907,4.94956424,139.33,139.3,5.68103767]
[1745058762206,7.1775,139.34,139.3,5.68103767]
[1745058762407,4.94926957,139.33,139.3,5.68103767]
[1745058762607,7.1775,139.34,139.3,5.68103767]
[1745058762907,4.9493046,139.33,139.3,5.68103767]
[1745058763207,12.85803767,139.35,139.3,5.68103767]
[1745058763407,4.94825813,139.34,139.3,5.68103767]
[1745058763607,4.94825813,139.33,139.3,5.68103767]
[1745058763809,5.68103767,139.35,139.3,5.68103767]
[1745058764108,7.1772,139.34,139.3,5.68103767]
[1745058765208,12.85813767,139.35,139.3,5.68103767]
[1745058765404,4.94712608,139.34,139.3,5.68103767]
[1745058765610,12.85813767,139.35,139.3,5.68103767]
[1745058765809,4.94715607,139.34,139.3,5.68103767]
[1745058766010,12.85813767,139.35,139.3,5.68103767]
[1745058766209,4.94740242,139.34,139.3,5.68103767]
[1745058766411,12.85813767,139.35,139.3,5.68103767]
[1745058766710,12.12479049,139.34,139.3,5.68103767]
[1745058767309,4.94759049,139.34,139.3,5.68103767]
[1745058768812,12.12479049,139.34,139.3,5.68103767]
[1745058769012,10.63024575,139.33,139.28,31.04103767]
[1745058769311,5.68103767,139.33,139.28,31.04103767]
[1745058769513,4.94837881,139.32,139.28,31.04103767]
[1745058769714,5.68103767,139.33,139.28,31.04103767]
[1745058770014,12.12666855,139.32,139.28,31.04103767]
[1745058770205,7.1785,139.32,139.28,31.04103767]
[1745058770406,4.94735642,139.31,139.28,31.04103767]
[1745058770614,7.1785,139.32,139.28,31.04103767]
[1745058770816,4.94735642,139.31,139.28,31.04103767]
[1745058771012,12.85903767,139.33,139.28,31.04103767]
[1745058771312,4.94758786,139.32,139.28,31.04103767]
[1745058771514,12.85903767,139.33,139.28,31.04103767]
[1745058771713,4.94695137,139.32,139.28,31.04103767]
[1745058779729,12.12525137,139.32,139.28,31.04103767]
[1745058781132,4.94695137,139.32,139.3,5.68103767]
[1745058783425,4.94695137,139.32,139.28,31.04103767]
[1745058787127,12.12525137,139.32,139.28,31.04103767]
[1745058787327,4.94695137,139.32,139.28,31.04103767]
[1745058788229,12.12535137,139.32,139.28,31.04103767]
[1745058788429,4.94695137,139.32,139.28,31.04103767]
[1745058791229,4.94695137,139.32,139.3,5.68103767]
[1745058792633,4.94695137,139.32,139.28,31.04103767]
[1745058792834,5.78665229,139.31,139.28,31.04103767]
[1745058793035,5.78665229,139.3,139.28,31.04103767]
[1745058793335,5.78665229,139.29,139.28,31.04103767]
[1745058795832,4.94695137,139.32,139.28,31.04103767]
[1745058796030,7.1788,139.31,139.28,31.04103767]
[1745058797938,12.12535137,139.32,139.28,31.04103767]
[1745058798140,5.68103767,139.31,139.2,572.1301]
[1745058798341,5.68103767,139.29,139.21,26.67869554]
[1745058798532,5.68103767,139.29,139.24,5.68103767]
[1745058798737,12.86103767,139.29,139.24,5.68103767]
[1745058801241,5.78126608,139.28,139.24,5.68103767]
[1745058801441,5.78126608,139.27,139.24,5.68103767]
[1745058801640,5.78126608,139.26,139.24,5.68103767]
[1745058801835,5.78126608,139.25,139.24,5.68103767]
[1745058803144,5.78126608,139.25,139.23,5.68103767]
[1745058803345,5.78925113,139.24,139.23,5.68103767]
[1745058805947,5.68103767,139.31,139.23,5.68103767]
[1745058806146,30.30695137,139.32,139.29,5.68103767]
[1745058806845,4.94695137,139.32,139.29,5.68103767]
[1745058807043,4.94695137,139.32,139.31,5.68103767]
[1745058813547,4.94759049,139.34,139.31,5.68103767]
[1745058813754,4.94759049,139.34,139.33,5.68103767]
[1745058814047,4.94759049,139.34,139.33,31.04103767]
[1745058818154,4.94759049,139.34,139.33,25.36]
[1745058818453,4.94759049,139.34,139.3,31.02103767]
[1745058818954,12.12519049,139.34,139.3,31.02103767]
[1745058819147,10.62862816,139.34,139.29,5.68103767]
[1745058819453,10.62862816,139.34,139.27,31.02103767]
[1745058819753,7.1778,139.33,139.27,31.02103767]
[1745058820957,17.80602816,139.34,139.27,31.02103767]
[1745058821155,17.80602816,139.34,139.29,5.68103767]
[1745058825559,4.82793608,139.33,139.29,5.68103767]
[1745058825859,4.82793609,139.32,139.28,5.68103767]
[1745058826052,7.1779,139.33,139.28,5.68103767]
[1745058826258,17.68712601,139.32,139.27,31.02103767]
[1745058826459,4.82712114,139.31,139.27,5.68103767]
[1745058826759,4.82712114,139.3,139.27,5.68103767]
[1745058826955,12.85923767,139.32,139.27,5.68103767]
[1745058827150,4.82686202,139.31,139.27,5.68103767]
[1745058827352,4.82686202,139.3,139.27,5.68103767]
[1745058827554,12.85923767,139.32,139.27,5.68103767]
[1745058827858,4.8266368,139.31,139.27,5.68103767]
[1745058828057,4.8266368,139.3,139.27,5.68103767]
[1745058828256,12.85923767,139.32,139.27,5.68103767]
[1745058828457,4.82653888,139.31,139.27,5.68103767]
[1745058828757,4.82653888,139.3,139.27,5.68103767]
[1745058828953,12.85923767,139.32,139.27,5.68103767]
[1745058829156,4.82648365,139.31,139.27,5.68103767]
[1745058829360,4.82648365,139.3,139.27,5.68103767]
[1745058829660,12.85923767,139.32,139.27,5.68103767]
[1745058829959,5.68103767,139.3,139.26,25.36]
[1745058830159,4.82677617,139.29,139.26,25.36]
[1745058830461,12.86063767,139.3,139.26,25.36]
[1745058830758,4.82464656,139.29,139.26,25.36]
[1745058830958,12.86063767,139.3,139.26,25.36]
[1745058831163,4.82371738,139.29,139.26,25.36]
[1745058831357,12.86063767,139.3,139.26,25.36]
[1745058831657,4.8233253,139.29,139.26,25.36]
[1745058831858,5.68103767,139.32,139.27,5.68103767]
[1745058832057,4.82316116,139.31,139.27,5.68103767]
[1745058832257,4.82316116,139.3,139.27,5.68103767]
[1745058832460,4.82316116,139.29,139.27,5.68103767]
[1745058832660,5.68103767,139.32,139.27,5.68103767]
[1745058832855,4.82333022,139.31,139.29,5.68103767]
[1745058833059,43.16602816,139.34,139.29,5.68103767]
[1745058833361,4.82369313,139.33,139.31,5.68103767]
[1745058833561,4.94759049,139.34,139.31,5.68103767]
[1745058833763,4.8240379,139.33,139.31,5.68103767]
[1745058833963,4.94759049,139.34,139.31,5.68103767]
[1745058834163,4.8240379,139.33,139.31,5.68103767]
[1745058834357,4.94759049,139.34,139.31,5.68103767]
[1745058834562,4.82386649,139.33,139.31,5.68103767]
[1745058834762,4.94759049,139.34,139.31,5.68103767]
[1745058834964,4.82386649,139.33,139.31,5.68103767]
[1745058835164,4.94759049,139.34,139.31,5.68103767]
[1745058835462,4.82386649,139.33,139.31,5.68103767]
[1745058835664,4.94759049,139.34,139.31,5.68103767]
[1745058835862,4.82365967,139.33,139.31,5.68103767]
[1745058836063,4.94759049,139.34,139.31,5.68103767]
[1745058836260,4.82338132,139.33,139.31,5.68103767]
[1745058836463,4.94759049,139.34,139.31,5.68103767]
[1745058836663,4.94759049,139.34,139.33,5.68103767]
[1745058836965,9.77091321,139.34,139.33,5.68103767]
[1745058838563,4.94759049,139.34,139.33,5.68103767]
[1745058841169,5.68103767,139.42,139.33,5.68103767]
[1745058841370,5.68103767,139.42,139.36,5.68103767]
[1745058842073,7.1745,139.4,139.37,7.1754]
[1745058842872,7.1745,139.4,139.38,7.1751]